bitfinex/quotes_SOLUSD_20220211
["timestamp","ask_amount","ask_price","bid_price","bid_amount"]
[1644593960114,61.2755903,107.1,107.04,68.15163871]
[1644593960420,61.2755903,107.1,107.04,27.4847]
[1644593960715,61.2755903,107.1,107.04,13.47]
[1644593961313,47.2608903,107.1,107.04,13.47]
[1644593961514,47.2608903,107.1,107.04,64.19339304]
[1644593961714,47.2608903,107.1,107.04,61.80972513]
[1644593961913,47.2608903,107.1,107.04,75.82422513]
[1644593962114,4.668,107.12,107.04,78.20789304]
[1644593962316,29.2431,107.13,107.04,78.45789304]
[1644593962518,29.2431,107.13,107.05,4.668]
[1644593962716,24.5751,107.13,107.06,13.47]
[1644593962918,24.5751,107.13,107.07,4.668]
[1644593963115,39.942993,107.12,107.08,13.47]
[1644593963318,24.6676,107.14,107.08,27.4798]
[1644593964516,62.66617262,107.14,107.09,46.85496987]
[1644593964717,76.67577262,107.14,107.09,60.32496987]
[1644593965318,4.7067779,107.16,107.09,74.33326987]
[1644593965523,0.0387779,107.16,107.1,4.667]
[1644593965719,0.0387779,107.16,107.11,13.47]
[1644593965919,4.7057779,107.18,107.11,13.47]
[1644593966121,0.0387779,107.18,107.12,4.666]
[1644593966319,14.0056,107.17,107.12,54.46109283]
[1644593966522,44.84291127,107.16,107.12,54.46109283]
[1644593968219,14.0056,107.17,107.12,54.46109283]
[1644593968420,18.6716,107.17,107.12,49.79509283]
[1644593969320,0.0387779,107.18,107.12,71.09926074]
[1644593969524,34.21709595,107.19,107.12,71.09926074]
[1644593969720,0.0387779,107.18,107.12,71.09926074]
[1644593969920,34.21709595,107.19,107.12,71.09926074]
[1644593970121,0.0387779,107.18,107.12,71.09926074]
[1644593970722,34.21709595,107.19,107.12,71.09926074]
[1644593971025,0.0387779,107.19,107.12,71.09926074]
[1644593971225,0.0387779,107.2,107.13,30.4222]
[1644593971427,4.7037779,107.23,107.15,13.9971]
[1644593971625,0.0387779,107.19,107.16,13.47]
[1644593971828,0.0387779,107.22,107.17,41.26369105]
[1644593972022,13.9973,107.25,107.17,41.26369105]
[1644593972023,13.9973,107.25,107.18,4.664]
[1644593972225,4.7017779,107.24,107.17,51.70149108]
[1644593972623,4.663,107.24,107.17,51.70149108]
[1644593972825,18.6609,107.24,107.17,51.70149108]
[1644593974424,18.6609,107.24,107.17,13.47]
[1644593975025,13.9979,107.24,107.17,13.47]
[1644593975247,14.0008,107.22,107.17,13.47]
[1644593975426,39.05456534,107.21,107.15,13.47]
[1644593975629,43.71856534,107.21,107.15,13.47]
[1644593976126,43.75734324,107.21,107.15,13.47]
[1644593976324,43.71856534,107.21,107.15,13.47]
[1644593976534,14.0035,107.2,107.15,13.47]
[1644593977625,43.71856534,107.21,107.15,13.47]
[1644593977835,39.05456534,107.21,107.15,13.47]
[1644593978427,37.0619779,107.22,107.15,13.47]
[1644593978729,4.7037779,107.24,107.17,13.9976]
[1644593978929,4.664,107.25,107.18,18.133]
[1644593979127,4.664,107.25,107.18,20.51666791]
[1644593979128,0.0387779,107.25,107.18,20.51666791]
[1644593979328,0.0387779,107.25,107.2,36.95785477]
[1644593979529,14.0344779,107.26,107.2,55.09085477]
[1644593979730,14.0344779,107.26,107.2,57.72452268]
[1644593980130,0.0387779,107.26,107.2,71.71822268]
[1644593980730,84.32028762,107.27,107.2,67.05522268]
[1644593980929,4.662,107.26,107.2,66.80522268]
[1644593981133,4.7007779,107.26,107.2,50.42785477]
[1644593981732,18.6957779,107.26,107.2,50.42785477]
[1644593983953,14.0337779,107.26,107.2,50.42785477]
[1644593986261,14.0337779,107.26,107.2,13.47]
[1644593986659,13.8337779,107.26,107.2,13.47]
[1644593986859,4.662,107.25,107.2,13.47]
[1644593987260,18.6584,107.25,107.18,4.662]
[1644593987462,18.6584,107.25,107.18,13.47]
[1644593988460,67.76206791,107.25,107.14,4.663]
[1644593988662,91.54496791,107.25,107.15,13.47]
[1644593988864,91.54496791,107.25,107.15,6.0]
[1644593989063,91.54496791,107.25,107.14,13.47]
[1644593989464,42.4413,107.25,107.15,45.39408557]
[1644593989663,42.4413,107.25,107.15,50.05808557]
[1644593990472,0.03878482,107.24,107.15,80.16215348]
[1644593990765,0.03878482,107.24,107.16,6.0]
[1644593990967,0.03878482,107.26,107.17,13.47]
[1644593991163,0.03878482,107.23,107.17,27.40966791]
[1644593991366,0.03878482,107.26,107.19,36.49313025]
[1644593991564,4.70178482,107.26,107.19,49.96313025]
[1644593992064,18.69638482,107.26,107.19,49.96313025]
[1644593992264,18.69638482,107.26,107.17,13.47]
[1644593992465,67.76126791,107.26,107.17,13.47]
[1644593992764,67.76126791,107.26,107.15,4.664]
[1644593992963,65.3776,107.26,107.14,13.47]
[1644593993165,65.3776,107.26,107.15,4.664]
[1644593993364,0.0387811,107.25,107.15,45.0269905]
[1644593993567,14.0008,107.22,107.15,45.0269905]
[1644593993768,14.0395811,107.22,107.15,45.0269905]
[1644593993969,14.0395811,107.22,107.15,4.664]
[1644593994367,60.7595811,107.22,107.15,4.664]
[1644593994567,14.0045,107.2,107.12,18.134]
[1644593994768,0.0387811,107.19,107.12,18.384]
[1644593994969,0.0387811,107.2,107.13,45.10977687]
[1644593995568,14.0038,107.19,107.13,45.10977687]
[1644593995771,51.23928716,107.19,107.14,4.665]
[1644593996071,51.23928716,107.19,107.13,49.77477687]
[1644593996271,51.27806826,107.19,107.13,49.77477687]
[1644593996476,51.27806826,107.19,107.13,4.665]
[1644593997474,51.27806826,107.19,107.14,42.30512192]
[1644593997674,14.0425811,107.19,107.14,42.30512192]
[1644593998078,0.0387811,107.19,107.14,55.77512192]
[1644593998278,4.7037811,107.2,107.14,56.02512192]
[1644593998479,0.0387811,107.19,107.14,56.02512192]
[1644593998682,38.768929,107.2,107.14,56.02512192]
[1644593998880,38.7301479,107.2,107.14,69.77722192]
[1644594000078,57.3975479,107.2,107.14,55.77512192]
[1644594000578,57.3975479,107.2,107.12,18.6689]
[1644594000879,0.0387811,107.19,107.12,14.0039]
[1644594001282,14.0424811,107.19,107.13,27.473]
[1644594001504,4.7037811,107.19,107.13,27.473]
[1644594001686,0.0387811,107.2,107.13,27.723]
[1644594001881,0.0387811,107.21,107.14,2.38366791]
[1644594002079,0.0387811,107.22,107.15,14.79454089]
[1644594002281,0.0387811,107.23,107.15,15.04454089]
[1644594002579,13.9997,107.22,107.16,37.6331862]
[1644594002795,0.0387811,107.22,107.16,37.8831862]
[1644594002982,0.0387811,107.23,107.17,18.134]
[1644594003180,4.7027811,107.25,107.17,26.76766791]
[1644594003385,4.7027811,107.25,107.17,22.10366791]
[1644594003588,0.0387811,107.25,107.19,13.996]
[1644594003781,43.87937602,107.28,107.2,69.93362174]
[1644594003983,0.0387811,107.27,107.2,69.93362174]
[1644594004186,4.7007811,107.27,107.2,70.18362174]
[1644594004587,4.7007811,107.27,107.2,63.93362174]
[1644594004788,4.7007811,107.27,107.2,59.27062174]
[1644594005185,0.0387811,107.27,107.21,4.662]
[1644594005484,18.655,107.27,107.22,13.47]
[1644594005687,14.0317811,107.27,107.22,13.47]
[1644594005884,13.993,107.27,107.22,13.47]
[1644594006986,18.655,107.27,107.22,13.47]
[1644594007591,18.655,107.27,107.21,4.662]
[1644594007787,2.38366791,107.26,107.21,4.662]
[1644594007988,18.6602,107.25,107.21,4.662]
[1644594008388,13.9982,107.25,107.17,4.662]
[1644594008589,0.03887586,107.24,107.17,4.662]
[1644594009012,0.03887586,107.25,107.18,45.47960129]
[1644594009212,56.6647961,107.24,107.18,45.47960129]
[1644594010712,56.6647961,107.24,107.18,59.47710129]
[1644594010911,4.663,107.23,107.18,59.47710129]
[1644594011111,13.9995,107.22,107.16,18.133]
[1644594011311,14.03837586,107.22,107.16,13.47]
[1644594011714,14.03837586,107.22,107.16,27.4702]
[1644594011913,13.9995,107.22,107.16,27.4702]
[1644594012111,14.03837586,107.22,107.17,43.54476044]
[1644594012312,13.9995,107.22,107.17,43.54476044]
[1644594012913,0.03887586,107.23,107.17,57.54366044]
[1644594013115,61.36777196,107.24,107.17,57.54366044]
[1644594013314,18.70077586,107.24,107.17,57.54366044]
[1644594013713,18.70077586,107.24,107.17,57.79366044]
[1644594013914,18.6619,107.24,107.18,13.47]
[1644594014114,13.9979,107.24,107.19,13.9958]
[1644594017414,14.03437586,107.25,107.2,4.663]
[1644594017615,13.9955,107.25,107.2,18.658]
[1644594017814,13.9955,107.25,107.2,13.995]
[1644594018416,13.9955,107.25,107.21,37.59207924]
[1644594018616,13.9986,107.23,107.16,5.98754089]
[1644594018816,14.03747586,107.23,107.17,27.4686]
[1644594019017,0.03887586,107.22,107.17,27.4686]
[1644594019216,4.70187586,107.23,107.17,27.4686]
[1644594019418,4.70187586,107.24,107.17,27.4686]
[1644594019617,4.70187586,107.24,107.18,37.80837557]
[1644594020719,13.9993,107.22,107.17,13.47]
[1644594021024,18.6633,107.22,107.15,66.4414]
[1644594021222,18.70217586,107.22,107.15,18.133]
[1644594021620,14.03817586,107.22,107.15,18.133]
[1644594021919,14.03817586,107.22,107.16,45.17946415]
[1644594023219,14.03817586,107.22,107.16,49.84346415]
[1644594023924,4.664,107.21,107.16,49.84346415]
[1644594024126,14.0034,107.2,107.16,45.17946415]
[1644594026323,14.0034,107.2,107.13,5.98954089]
[1644594026522,14.04227586,107.2,107.13,1.32454089]
[1644594026722,14.04227586,107.2,107.13,1.57454089]
[1644594027123,42.17679092,107.19,107.14,43.37044072]
[1644594027425,14.004,107.19,107.14,43.37044072]
[1644594028323,52.69857671,107.19,107.14,43.37044072]
[1644594029023,52.69857671,107.19,107.13,15.32864089]
[1644594029225,57.36357671,107.19,107.12,33.46524089]
[1644594029425,57.36357671,107.19,107.11,19.46054089]
[1644594029625,57.36357671,107.19,107.11,14.79454089]
[1644594029825,57.36357671,107.19,107.1,5.99054089]
[1644594030028,14.0122,107.16,107.1,1.32454089]
[1644594030228,50.26656141,107.15,107.09,35.88386298]
[1644594030626,4.667,107.15,107.09,35.88386298]
[1644594031026,51.297,107.19,107.1,5.99154089]
[1644594031234,4.667,107.19,107.1,4.667]
[1644594031427,7.05066791,107.19,107.1,4.667]
[1644594031626,34.29751991,107.18,107.1,4.667]
[1644594031828,4.666,107.17,107.1,4.667]
[1644594032127,14.0073,107.16,107.1,4.917]
[1644594032728,4.666,107.17,107.1,4.917]
[1644594032929,34.29751991,107.18,107.1,4.917]
[1644594033129,34.29751991,107.18,107.1,6.24154089]
[1644594033329,4.70587586,107.2,107.1,19.71154089]
[1644594033729,14.0059,107.18,107.1,33.71894089]
[1644594034531,4.70587586,107.2,107.1,33.71894089]
[1644594034731,4.70587586,107.2,107.12,1.32454089]
[1644594034732,0.03887586,107.2,107.12,1.32454089]
[1644594034930,0.03887586,107.2,107.13,32.137]
[1644594035134,0.03887586,107.23,107.13,38.137]
[1644594035331,4.70387586,107.22,107.13,39.71154089]
[1644594035630,37.54285113,107.21,107.14,40.82156544]
[1644594035833,37.58172699,107.21,107.15,4.665]
[1644594036033,37.54285113,107.21,107.15,4.665]
[1644594036432,0.03887586,107.21,107.15,4.665]
[1644594036633,13.9996,107.22,107.15,18.6659]
[1644594036835,18.6636,107.22,107.15,18.9159]
[1644594037032,13.9996,107.22,107.15,18.9159]
[1644594037233,14.03847586,107.22,107.15,18.9159]
[1644594037435,59.55292734,107.22,107.15,18.9159]
[1644594037836,59.55292734,107.22,107.15,18.6659]
[1644594038533,4.664,107.21,107.15,18.6659]
[1644594038735,18.6653,107.21,107.15,18.6659]
[1644594038933,18.70417586,107.21,107.15,18.6659]
[1644594039134,18.70417586,107.21,107.15,4.665]
[1644594039736,18.70417586,107.21,107.14,54.82396544]
[1644594039933,14.04017586,107.21,107.14,59.48896544]
[1644594040134,14.04017586,107.21,107.15,13.47]
[1644594040337,14.04017586,107.21,107.15,27.7205]
[1644594040634,14.0013,107.21,107.16,4.665]
[1644594040834,14.0013,107.21,107.16,4.915]
[1644594041635,0.03887586,107.22,107.16,4.915]
[1644594041636,14.03857586,107.22,107.16,18.9147]
[1644594041835,18.6637,107.22,107.16,18.9147]
[1644594042035,18.70257586,107.22,107.16,18.9147]
[1644594042836,14.03857586,107.22,107.16,14.2497]
[1644594043039,14.03857586,107.22,107.16,27.7197]
[1644594043438,4.664,107.21,107.16,27.7197]
[1644594043839,4.664,107.21,107.16,27.4697]
[1644594044138,18.6648,107.21,107.14,40.82156544]
[1644594044738,14.0008,107.21,107.15,4.665]
[1644594045238,14.03807586,107.23,107.16,6.0]
[1644594045438,0.03887586,107.21,107.17,4.664]
[1644594045741,4.70287586,107.22,107.15,13.72]
[1644594045938,34.73511571,107.21,107.16,13.47]
[1644594046639,4.664,107.2,107.14,68.54536544]
[1644594046839,4.664,107.2,107.14,18.134]
[1644594047740,18.6663,107.2,107.14,32.3866]
[1644594047939,14.0023,107.2,107.14,76.49777708]
[1644594050342,48.73621571,107.21,107.14,76.49777708]
[1644594050847,48.73621571,107.21,107.14,76.24777708]
[1644594051947,4.665,107.2,107.14,76.24777708]
[1644594053261,53.40121571,107.21,107.14,76.49777708]
[1644594053561,53.40121571,107.21,107.14,77.82231797]
[1644594057162,48.73621571,107.21,107.14,77.82231797]
[1644594058695,48.73621571,107.21,107.14,73.15831797]
[1644594059297,4.70387586,107.22,107.14,73.15831797]
[1644594059496,14.03867586,107.22,107.15,5.98954089]
[1644594059698,13.9998,107.22,107.16,13.9993]
[1644594059897,13.9998,107.22,107.17,4.664]
[1644594060294,53.2065813,107.22,107.17,4.664]
[1644594060499,4.664,107.21,107.17,4.664]
[1644594060798,53.2065813,107.22,107.16,18.6633]
[1644594061600,53.2065813,107.22,107.16,59.09941755]
[1644594062699,53.2065813,107.22,107.16,59.34941755]
[1644594062700,13.9998,107.22,107.16,59.34941755]
[1644594062897,0.03887586,107.23,107.18,13.9969]
[1644594063097,47.96862549,107.26,107.18,13.9969]
[1644594063098,0.03887586,107.25,107.19,13.47]
[1644594063299,0.03887586,107.25,107.19,21.04454089]
[1644594063699,0.03887586,107.26,107.2,47.82657658]
[1644594063900,4.662,107.26,107.2,43.16357658]
[1644594064199,18.69587586,107.26,107.19,1.32454089]
[1644594064400,18.69587586,107.26,107.17,1.32454089]
[1644594064600,0.03887586,107.25,107.16,1.32454089]
[1644594064902,4.663,107.24,107.16,1.32454089]
[1644594065100,35.80302233,107.23,107.16,42.15663563]
[1644594065304,49.80342233,107.23,107.16,1.32454089]
[1644594065501,49.80342233,107.23,107.15,1.32723955]
[1644594065703,7.08654377,107.22,107.12,3.96970949]
[1644594066002,27.49342028,107.21,107.11,1.32723955]
[1644594066204,4.665,107.2,107.11,1.32723955]
[1644594066404,75.38364263,107.2,107.1,1.32723955]
[1644594066604,11.96917265,107.19,107.09,1.32723955]
[1644594066800,14.0104,107.16,107.09,1.32723955]
[1644594067000,50.09293628,107.15,107.09,1.32723955]
[1644594067204,52.47660419,107.15,107.09,1.32723955]
[1644594067401,94.61177596,107.13,107.09,42.64306354]
[1644594067605,46.63,107.15,107.09,42.64306354]
[1644594067803,4.667,107.16,107.09,42.64306354]
[1644594068204,14.0089,107.16,107.09,42.64306354]
[1644594068604,4.667,107.15,107.09,1.32723955]
[1644594068801,4.667,107.15,107.08,1.35123955]
[1644594069020,14.0089,107.16,107.09,5.99423955]
[1644594069223,14.0061,107.18,107.09,20.00123955]
[1644594069424,4.667,107.17,107.1,1.32723955]
[1644594069624,4.667,107.17,107.11,43.81917572]
[1644594070024,4.667,107.17,107.11,45.14641527]
[1644594070222,18.6735,107.17,107.11,43.81917572]
[1644594070427,14.0065,107.17,107.11,43.81917572]
[1644594070723,57.36138428,107.17,107.11,43.81917572]
[1644594070923,57.36138428,107.17,107.1,1.32723955]
[1644594071123,4.667,107.16,107.08,1.35123955]
[1644594071324,51.297,107.16,107.08,1.35123955]
[1644594071926,43.26515168,107.15,107.09,44.58041665]
[1644594072325,57.27445168,107.15,107.09,44.58041665]
[1644594072726,4.667,107.14,107.08,1.35123955]
[1644594072928,4.667,107.14,107.08,0.024]
[1644594073124,4.667,107.14,107.06,1.32723955]
[1644594073326,4.667,107.14,107.07,0.024]
[1644594073726,4.667,107.14,107.07,45.01657415]
[1644594073929,40.67181437,107.13,107.07,45.01657415]
[1644594074123,4.667,107.14,107.07,45.01657415]
[1644594074325,52.8122,107.15,107.07,49.68457415]
[1644594074528,52.8122,107.15,107.08,0.024]
[1644594074727,48.1442,107.15,107.08,0.024]
[1644594075126,37.46303838,107.14,107.08,0.024]
[1644594075528,48.1442,107.15,107.08,0.024]
[1644594075725,48.1442,107.15,107.09,4.667]
[1644594075926,51.3648,107.18,107.09,4.667]
[1644594076327,46.6978,107.18,107.09,4.667]
[1644594076526,46.67836815,107.17,107.1,37.65430242]
[1644594077729,60.68646815,107.17,107.1,37.65430242]
[1644594078828,56.01946815,107.17,107.1,37.65430242]
[1644594081032,56.01946815,107.17,107.1,37.90430242]
[1644594082033,56.01946815,107.17,107.11,4.667]
[1644594082635,4.666,107.16,107.08,25.45333955]
[1644594082836,14.0104,107.15,107.08,30.12033955]
[1644594083041,4.667,107.14,107.08,28.7931]
[1644594083437,46.39000501,107.15,107.09,39.85844429]
[1644594083637,140.5691,107.17,107.09,39.85844429]
[1644594083638,47.2346,107.17,107.09,39.85844429]
[1644594083837,47.2346,107.17,107.1,4.667]
[1644594084440,4.667,107.16,107.09,67.58484429]
[1644594084640,35.26369009,107.15,107.09,67.58484429]
[1644594085842,35.26369009,107.15,107.09,67.33484429]
[1644594086039,35.26369009,107.15,107.1,4.667]
[1644594086240,35.26369009,107.15,107.09,13.47]
[1644594087239,35.26369009,107.15,107.08,1.35123955]
[1644594087540,51.297,107.14,107.08,0.024]
[1644594088140,36.81929397,107.13,107.08,0.024]
[1644594088344,4.668,107.12,107.08,45.55565862]
[1644594088540,4.668,107.12,107.08,0.024]
[1644594088740,4.668,107.12,107.06,1.35123955]
[1644594089541,46.63,107.1,107.06,0.024]
[1644594089740,46.63,107.1,107.04,13.47]
[1644594089741,53.974,107.1,107.04,1.32723955]
[1644594089941,4.668,107.09,107.04,1.32723955]
[1644594090144,4.668,107.09,107.04,1.35123955]
[1644594090645,38.19796131,107.08,107.04,1.35123955]
[1644594090845,38.19796131,107.08,107.04,1.32723955]
[1644594091243,4.668,107.09,107.04,1.32723955]
[1644594091444,14.0142,107.12,107.04,6.02123955]
[1644594091646,14.0142,107.12,107.04,22.12490746]
[1644594091844,45.453,107.13,107.05,1.32723955]
[1644594092050,4.668,107.12,107.06,0.024]
[1644594092246,35.06237611,107.12,107.06,40.4966944]
[1644594092746,35.06237611,107.12,107.06,1.35123955]
[1644594092947,4.668,107.11,107.06,1.32723955]
[1644594093146,4.668,107.11,107.05,1.35123955]
[1644594093544,4.668,107.11,107.06,1.32723955]
[1644594093744,4.668,107.11,107.06,39.69753044]
[1644594093947,4.668,107.11,107.06,39.67353044]
[1644594094146,49.07537611,107.12,107.06,39.67353044]
[1644594094346,49.07537611,107.12,107.07,1.32723955]
[1644594094546,49.07537611,107.12,107.07,1.35123955]
[1644594095146,49.07537611,107.12,107.07,0.024]
[1644594095350,49.07537611,107.12,107.06,1.32723955]
[1644594095548,4.668,107.11,107.06,1.32723955]
[1644594095749,14.0169,107.1,107.06,1.32723955]
[1644594095951,4.668,107.09,107.05,1.35123955]
[1644594096151,28.0205,107.11,107.06,0.024]
[1644594096449,39.62793921,107.1,107.06,1.32723955]
[1644594096649,44.29593921,107.1,107.05,1.32723955]
[1644594097853,45.29107654,107.08,107.05,1.32723955]
[1644594099256,23.3525,107.11,107.05,1.32723955]
[1644594099257,4.67,107.11,107.05,1.32723955]
[1644594099457,4.668,107.12,107.05,5.99523955]
[1644594099658,4.668,107.12,107.06,1.35123955]
[1644594100158,45.71048488,107.11,107.06,1.35123955]
[1644594100359,4.668,107.1,107.06,1.35123955]
[1644594100559,4.668,107.1,107.05,1.35123955]
[1644594100560,18.6836,107.1,107.05,1.35123955]
[1644594100759,18.6836,107.1,107.06,39.79543353]
[1644594100965,45.71048488,107.11,107.06,41.12267308]
[1644594101172,45.71048488,107.11,107.06,41.14667308]
[1644594101362,45.71048488,107.11,107.06,41.12267308]
[1644594101961,98.0069,107.15,107.06,41.12267308]
[1644594102164,22.6772,107.18,107.08,1.32723955]
[1644594102165,4.668,107.16,107.08,1.32723955]
[1644594102364,46.5802,107.21,107.08,1.32723955]
[1644594102365,4.667,107.17,107.09,14.79723955]
[1644594102565,46.5802,107.21,107.11,1.32723955]
[1644594102790,51.2452,107.21,107.12,13.47]
[1644594103063,14.0044,107.19,107.12,70.02640917]
[1644594103263,4.666,107.18,107.12,31.18440746]
[1644594103562,4.666,107.18,107.12,13.47]
[1644594103766,51.296,107.19,107.12,13.47]
[1644594104162,108.88139827,107.18,107.12,13.47]
[1644594104367,38.97080944,107.16,107.12,13.47]
[1644594105163,52.97910944,107.16,107.1,1.32723955]
[1644594105368,4.667,107.15,107.09,1.32723955]
[1644594105563,7.05066791,107.15,107.08,1.35123955]
[1644594105764,40.80120187,107.14,107.08,43.92216662]
[1644594105962,40.80120187,107.14,107.08,1.35123955]
[1644594106163,54.81360187,107.14,107.08,0.024]
[1644594106367,54.81360187,107.14,107.07,23.81223955]
[1644594106564,4.668,107.13,107.07,22.509]
[1644594106963,46.76387364,107.12,107.07,58.4810787]
[1644594107564,60.77777364,107.12,107.07,58.4810787]
[1644594108366,14.0139,107.12,107.07,58.4810787]
[1644594108566,23.6218,107.15,107.07,58.7070787]
[1644594108767,14.0099,107.14,107.08,1.35123955]
[1644594108969,28.2898,107.15,107.09,13.47]
[1644594109169,46.63,107.18,107.09,14.79723955]
[1644594109566,43.42019927,107.17,107.1,37.61397082]
[1644594109967,59.80775987,107.15,107.1,37.61397082]
[1644594110567,59.80775987,107.15,107.09,14.79723955]
[1644594110868,4.667,107.14,107.09,14.79723955]
[1644594111069,45.79915987,107.15,107.09,13.47]
[1644594111270,4.667,107.14,107.09,13.47]
[1644594111575,36.85860661,107.13,107.09,13.47]
[1644594111968,14.011,107.14,107.09,13.47]
[1644594112970,47.19448404,107.13,107.09,13.47]
[1644594113170,65.87368404,107.13,107.09,13.47]
[1644594113369,61.20668404,107.13,107.09,13.47]
[1644594113569,61.20668404,107.13,107.08,1.35123955]
[1644594113971,61.20668404,107.13,107.08,0.024]
[1644594114370,61.20668404,107.13,107.08,45.83574849]
[1644594114572,61.20668404,107.13,107.08,47.16298804]
[1644594117574,65.87468404,107.13,107.08,45.83574849]
[1644594117777,65.87468404,107.13,107.08,47.16298804]
[1644594118576,61.20668404,107.13,107.08,47.16298804]
[1644594119378,61.20668404,107.13,107.08,1.32723955]
[1644594119879,107.83668404,107.13,107.07,14.79723955]
[1644594120081,4.668,107.12,107.07,14.79723955]
[1644594120281,18.6814,107.12,107.07,14.79723955]
[1644594120484,36.79646114,107.11,107.07,14.79723955]
[1644594120884,18.6814,107.12,107.08,1.32723955]
[1644594121084,14.0134,107.12,107.08,1.32723955]
[1644594122085,59.29855965,107.12,107.08,36.11630972]
[1644594122382,14.0134,107.12,107.08,36.11630972]
[1644594122888,4.668,107.14,107.08,49.58630972]
[1644594123085,122.8348,107.21,107.09,3.71090746]
[1644594123086,4.668,107.18,107.09,3.71090746]
[1644594123286,4.667,107.2,107.11,1.32723955]
[1644594123485,4.667,107.2,107.13,42.69831288]
[1644594123486,46.34824691,107.19,107.13,42.69831288]
[1644594123684,46.34824691,107.19,107.13,13.47]
[1644594123885,4.665,107.18,107.13,13.47]
[1644594124087,18.6704,107.18,107.13,13.47]
[1644594124486,14.0054,107.18,107.13,13.47]
[1644594124689,14.0054,107.18,107.13,56.947153]
[1644594126994,14.0054,107.18,107.13,61.613153]
[1644594127590,36.3265667,107.17,107.13,61.613153]
[1644594127992,14.0054,107.18,107.13,61.613153]
[1644594128395,14.0054,107.18,107.13,18.136]
[1644594128893,18.6719,107.17,107.13,13.47]
[1644594129094,14.0059,107.17,107.13,13.47]
[1644594129292,52.10279438,107.17,107.13,13.47]
[1644594129791,4.666,107.16,107.11,1.32723955]
[1644594129992,14.0095,107.15,107.09,1.32723955]
[1644594130195,4.667,107.14,107.09,1.32723955]
[1644594130594,35.45929979,107.13,107.09,1.32723955]
[1644594130794,4.667,107.15,107.08,37.60153784]
[1644594130993,14.0094,107.14,107.09,1.32723955]
[1644594131794,60.26786389,107.14,107.09,1.32723955]
[1644594131993,60.26786389,107.14,107.1,48.49724394]
[1644594132496,60.26786389,107.14,107.09,1.32723955]
[1644594134295,60.26786389,107.14,107.09,1.35123955]
[1644594135299,14.0094,107.14,107.1,36.74505016]
[1644594135496,14.0081,107.15,107.1,36.74505016]
[1644594135696,4.667,107.18,107.1,36.99505016]
[1644594135901,156.9016,107.23,107.11,19.46323955]
[1644594135902,4.666,107.2,107.11,19.46323955]
[1644594136096,95.6291,107.21,107.11,39.48703955]
[1644594136296,44.56081142,107.2,107.12,46.14820044]
[1644594136499,44.56081142,107.2,107.12,60.15190044]
[1644594136697,44.56081142,107.2,107.12,60.40190044]
[1644594137301,44.56081142,107.2,107.12,5.99223955]
[1644594137498,4.665,107.19,107.12,5.99223955]
[1644594137698,18.668,107.19,107.12,4.665]
[1644594138107,46.63,107.18,107.12,4.665]
[1644594138302,41.44989354,107.16,107.12,4.665]
[1644594138502,42.97190871,107.14,107.12,4.665]
[1644594139704,56.98380871,107.14,107.12,4.665]
[1644594139907,61.65080871,107.14,107.12,4.665]
[1644594140626,61.65080871,107.14,107.1,0.024]
[1644594140826,61.65080871,107.14,107.08,0.024]
[1644594142126,2.38366791,107.13,107.08,0.024]
[1644594142328,46.63,107.11,107.06,0.024]
[1644594142629,4.668,107.1,107.06,0.024]
[1644594142826,4.668,107.1,107.05,1.32723955]
[1644594143026,40.99863645,107.09,107.05,1.32723955]
[1644594143229,40.99863645,107.09,107.04,1.35123955]
[1644594143527,40.99863645,107.09,107.04,1.32723955]
[1644594143726,40.99863645,107.09,107.04,1.35123955]
[1644594143927,14.0175,107.08,107.04,1.35123955]
[1644594144129,14.0175,107.08,107.04,1.32723955]
[1644594144427,60.6475,107.08,107.04,1.32723955]
[1644594144627,35.89859212,107.07,107.03,1.35123955]
[1644594144826,47.28659212,107.07,107.02,1.35123955]
[1644594145027,25.4067,107.07,107.03,34.82564112]
[1644594145230,4.67,107.11,107.03,39.49564112]
[1644594145427,4.67,107.11,107.03,39.51964112]
[1644594145726,4.67,107.11,107.04,0.024]
[1644594145928,48.13253006,107.1,107.04,0.024]
[1644594146227,35.13011672,107.08,107.04,0.024]